[Event "Turkish Cup 2024"]
[Site "Denizli"]
[Date "2024.08.04"]
[Round "8"]
[White "Tutuncu, Ali"]
[Black "Maruflu, Enes Yusuf"]
[Result "0-1"]
[ECO "C77"]
[WhiteElo "2041"]
[BlackElo "2228"]
[Annotator "RC"]
[PlyCount "176"]
[EventDate "2024.08.01"]
[EventType "swiss"]
[EventCountry "TUR"]
[SourceTitle "playchess.com"]
[Source "ChessBase"]
[SourceQuality "1"]
[TimeControl "5400+30"]

1. e4 {[%emt 0:01:00]} e5 {[%emt 0:01:00]} 2. Nf3 {[%emt 0:00:30]} Nc6 {[%emt 0:00:00]} 3. Bb5 {[%emt 0:00:00]} a6 {[%emt 0:00:00]} 4. Ba4 {[%emt 0:00:00]} Nf6 {[%emt 0:00:30]} 5. d3 {[%emt 0:00:00]} d6 {[%emt 0:00:00]} 6. c3 {[%emt 0:00:00]} g6 {[%emt 0:00:00]} 7. d4 {[%emt 0:01:30]} exd4 {[%emt 0:03:30]} 8. cxd4 {[%emt 0:00:30]} Bg7 {[%emt 0:04:30]} 9. d5 {[%emt 0:20:30]} b5 {[%emt 0:00:30]} 10. dxc6 {[%emt 0:00:30]} bxa4 {[%emt 0:00:30]} 11. Qxa4 {[%emt 0:00:30]} O-O {[%emt 0:00:00]} 12. O-O {[%emt 0:00:30]} Re8 {[%emt 0:03:00]} 13. Nc3 {[%emt 0:04:30]} Rb8 {[%emt 0:03:30]} 14. h3 {[%emt 0:16:30]} h6 {[%emt 0:01:30]} 15. Re1 {[%emt 0:08:30]} d5 {[%emt 0:04:30]} 16. e5 {[%emt 0:02:30]} Nh7 {[%emt 0:02:30]} 17. Qd4 {[%emt 0:01:30]} Be6 {[%emt 0:02:30]} 18. Rd1 {[%emt 0:00:30]} f6 {[%emt 0:04:30]} 19. Bf4 {[%emt 0:06:30]} Ng5 {[%emt 0:07:30]} 20. Nxg5 {[%emt 0:01:30]} fxg5 {[%emt 0:00:30]} 21. Bg3 {[%emt 0:01:30]} Rxb2 {[%emt 0:10:30]} 22. Rab1 {[%emt 0:04:30]} Rxb1 {[%emt 0:00:30]} 23. Rxb1 {[%emt 0:00:30]} h5 {[%emt 0:01:30]} 24. Rb7 {[%emt 0:02:30]} h4 {[%emt 0:01:30]} 25. Bh2 {[%emt 0:00:30]} Kh8 {[%emt 0:02:30]} 26. f3 {[%emt 0:03:30]} Qe7 {[%emt 0:00:30]} 27. f4 {[%emt 0:05:17]} g4 {[%emt 0:04:30]} 28. hxg4 {[%emt 0:00:19]} Qa3 {[%emt 0:01:30]} 29. Kh1 {[%emt 0:04:27]} Bxg4 {[%emt 0:04:30]} 30. Qd2 {[%emt 0:04:13]} h3 {[%emt 0:08:30]} 31. Bg1 {[%emt 0:04:46]} hxg2+ {[%emt 0:00:30]} 32. Kxg2 {[%emt 0:00:50]} Qa5 {[%emt 0:06:30]} 33. Kg3 {[%emt 0:03:05]} Bh5 {[%emt 0:01:30]} 34. a4 {[%emt 0:00:28]} Kh7 {[%emt 0:08:48]} 35. Bd4 {[%emt 0:00:15]} Re6 {[%emt 0:00:12]} 36. Bb6 {[%emt 0:01:03]} cxb6 {[%emt 0:00:20]} 37. c7 {[%emt 0:00:08]} Rc6 {[%emt 0:01:15]} 38. Ne4 {[%emt 0:00:06]} dxe4 {[%emt 0:01:53]} 39. Qxa5 {[%emt 0:01:36]} bxa5 {[%emt 0:00:30]} 40. e6 {[%emt 0:00:06]} g5 {[%emt 0:02:09]} 41. f5 {[%emt 0:00:04]} Rxc7 {[%emt 0:01:20]} 42. Rxc7 {[%emt 0:00:58]} Kh6 {[%emt 0:02:48]} 43. Rc4 {[%emt 0:00:54]} e3 {[%emt 0:01:05]} 44. Re4 {[%emt 0:00:44]} e2 {[%emt 0:00:08]} 45. e7 {[%emt 0:00:37]} Bc3 {[%emt 0:00:16]} 46. Rxe2 {[%emt 0:00:46]} Be8 {[%emt 0:00:36]} 47. Re6+ {[%emt 0:00:39]} Kg7 {[%emt 0:00:28]} 48. Kg4 {[%emt 0:00:30]} Bf6 {[%emt 0:01:17]} 49. Rxa6 {[%emt 0:00:08]} Bxa4 {[%emt 0:00:53]} 50. Rxa5 {[%emt 0:02:17]} Bd1+ {[%emt 0:00:49]} 51. Kg3 {[%emt 0:00:07]} Bxe7 {[%emt 0:00:45]} 52. Ra6 {[%emt 0:00:11]} Bh5 {[%emt 0:00:56]} 53. Re6 {[%emt 0:00:38]} Bf6 {[%emt 0:00:16]} 54. Re1 {[%emt 0:00:35]} Bd8 {[%emt 0:02:13]} 55. Re6 {[%emt 0:00:29]} Bc7+ {[%emt 0:00:16]} 56. Kf2 {[%emt 0:00:29]} Bf4 {[%emt 0:00:22]} 57. Ra6 {[%emt 0:00:58]} Kf7 {[%emt 0:00:49]} 58. Rc6 {[%emt 0:00:33]} Bg4 {[%emt 0:00:21]} 59. Rc4 {[%emt 0:00:28]} Kf6 {[%emt 0:00:15]} 60. Rc5 {[%emt 0:00:23]} Bh2 {[%emt 0:01:10]} 61. Kg2 {[%emt 0:00:46]} Be5 {[%emt 0:00:12]} 62. Rc8 {[%emt 0:00:09]} Kxf5 {[%emt 0:01:28]} 63. Rf8+ {[%emt 0:00:17]} Ke4 {[%emt 0:00:13]} 64. Rg8 {[%emt 0:00:36]} Kf4 {[%emt 0:02:32]} 65. Rf8+ {[%emt 0:00:25]} Bf5 {[%emt 0:00:59]} 66. Rd8 {[%emt 0:00:14]} Be4+ {[%emt 0:00:00]} 67. Kf2 {[%emt 0:00:47]} g4 {[%emt 0:00:28]} 68. Rf8+ {[%emt 0:00:38]} Bf5 {[%emt 0:00:50]} 69. Kg2 {[%emt 0:00:00]} Bd4 {[%emt 0:00:00]} 70. Kh2 {[%emt 0:00:00]} Bc5 {[%emt 0:00:17]} 71. Rg8 {[%emt 0:00:08]} Kf3 {[%emt 0:01:01]} 72. Rg5 {[%emt 0:00:27]} Bd6+ {[%emt 0:00:12]} 73. Kg1 {[%emt 0:00:31]} Be4 {[%emt 0:00:28]} 74. Rg7 {[%emt 0:00:48]} Kg3 {[%emt 0:00:53]} 75. Rf7 {[%emt 0:00:53]} Bc5+ {[%emt 0:00:37]} 76. Kf1 {[%emt 0:00:04]} Bd3+ {[%emt 0:00:19]} 77. Ke1 {[%emt 0:00:00]} Be3 {[%emt 0:00:33]} 78. Rf8 {[%emt 0:00:30]} Kg2 {[%emt 0:00:28]} 79. Re8 {[%emt 0:01:50]} Bf2+ {[%emt 0:00:46]} 80. Kd2 {[%emt 0:00:00]} Bf1 {[%emt 0:00:00]} 81. Rg8 {[%emt 0:01:21]} g3 {[%emt 0:00:00]} 82. Rh8 {[%emt 0:00:00]} Kg1 {[%emt 0:00:01]} 83. Ra8 {[%emt 0:00:37]} g2 {[%emt 0:00:19]} 84. Rh8 {[%emt 0:00:12]} Bb5 {[%emt 0:00:32]} 85. Rb8 {[%emt 0:00:19]} Kf1 {[%emt 0:00:43]} 86. Rxb5 {[%emt 0:00:34]} Be1+ {[%emt 0:00:07]} 87. Kd1 {[%emt 0:01:34]} g1=Q {[%emt 0:00:30]} 88. Rf5+ {[%emt 0:00:00]} Bf2 {[%emt 0:00:05]} 0-1

[Event "Turkish Cup 2024"]
[Site "Denizli"]
[Date "2024.08.04"]
[Round "8"]
[White "Yilmaz, Kerem Tuna"]
[Black "Seker, Cinar"]
[Result "1/2-1/2"]
[ECO "C65"]
[WhiteElo "2025"]
[BlackElo "1815"]
[Annotator "RC"]
[PlyCount "91"]
[EventDate "2024.08.01"]
[EventType "swiss"]
[EventCountry "TUR"]
[SourceTitle "playchess.com"]
[Source "ChessBase"]
[SourceQuality "1"]
[TimeControl "5400+30"]

1. e4 {[%emt 0:04:00]} e5 {[%emt 0:01:00]} 2. Nf3 {[%emt 0:01:30]} Nc6 {[%emt 0:00:30]} 3. Bb5 {[%emt 0:00:30]} Nf6 {[%emt 0:00:00]} 4. d3 {[%emt 0:01:30]} Bc5 {[%emt 0:00:00]} 5. c3 {[%emt 0:01:30]} d6 {[%emt 0:00:30]} 6. O-O {[%emt 0:04:30]} O-O {[%emt 0:00:00]} 7. Be3 {[%emt 0:07:30]} Bxe3 {[%emt 0:03:00]} 8. fxe3 {[%emt 0:01:30]} Ne7 {[%emt 0:00:30]} 9. Nbd2 {[%emt 0:13:30]} c6 {[%emt 0:00:30]} 10. Ba4 {[%emt 0:00:30]} Ng6 {[%emt 0:04:30]} 11. d4 {[%emt 0:09:30]} Qe7 {[%emt 0:00:30]} 12. Qe2 {[%emt 0:10:30]} d5 {[%emt 0:09:30]} 13. Bc2 {[%emt 0:18:30]} dxe4 {[%emt 0:00:00]} 14. Nxe4 {[%emt 0:01:30]} Nxe4 {[%emt 0:01:00]} 15. Bxe4 {[%emt 0:00:00]} exd4 {[%emt 0:02:30]} 16. exd4 {[%emt 0:05:06]} Bf5 {[%emt 0:06:30]} 17. Bd3 {[%emt 0:02:56]} Bxd3 {[%emt 0:01:30]} 18. Qxd3 {[%emt 0:00:02]} f6 {[%emt 0:01:30]} 19. Rae1 {[%emt 0:02:10]} Qd7 {[%emt 0:00:30]} 20. a4 {[%emt 0:01:29]} Rfe8 {[%emt 0:00:30]} 21. a5 {[%emt 0:00:26]} Qd5 {[%emt 0:02:30]} 22. a6 {[%emt 0:02:31]} b5 {[%emt 0:00:30]} 23. Nd2 {[%emt 0:04:17]} Rxe1 {[%emt 0:05:30]} 24. Rxe1 {[%emt 0:00:01]} Kf7 {[%emt 0:02:30]} 25. Qe4 {[%emt 0:02:35]} Qd7 {[%emt 0:02:30]} 26. Qf3 {[%emt 0:01:20]} Re8 {[%emt 0:01:30]} 27. Rxe8 {[%emt 0:00:02]} Kxe8 {[%emt 0:00:00]} 28. Ne4 {[%emt 0:00:32]} Nf8 {[%emt 0:02:00]} 29. Qg3 {[%emt 0:04:17]} Ne6 {[%emt 0:07:30]} 30. Nd6+ {[%emt 0:00:30]} Ke7 {[%emt 0:00:30]} 31. Nf5+ {[%emt 0:00:26]} Kf7 {[%emt 0:01:30]} 32. Nd6+ {[%emt 0:00:42]} Ke7 {[%emt 0:00:30]} 33. Nf5+ {[%emt 0:00:52]} Kf7 {[%emt 0:00:00]} 34. Qf3 {[%emt 0:00:00]} Ng5 {[%emt 0:01:00]} 35. Qg4 {[%emt 0:00:33]} Qe6 {[%emt 0:00:30]} 36. h4 {[%emt 0:00:04]} g6 {[%emt 0:05:30]} 37. Nh6+ {[%emt 0:00:48]} Kg7 {[%emt 0:00:00]} 38. hxg5 {[%emt 0:00:19]} Qe3+ {[%emt 0:00:00]} 39. Kh2 {[%emt 0:00:58]} fxg5 {[%emt 0:00:30]} 40. Ng8 {[%emt 0:00:27]} Kxg8 {[%emt 0:00:30]} 41. Qc8+ {[%emt 0:00:03]} Kg7 {[%emt 0:00:30]} 42. Qxc6 {[%emt 0:00:24]} Qf4+ {[%emt 0:02:30]} 43. Kg1 {[%emt 0:01:24]} Qc1+ {[%emt 0:00:30]} 44. Kh2 {[%emt 0:00:00]} Qf4+ {[%emt 0:00:30]} 45. Kg1 {[%emt 0:00:29]} Qc1+ {[%emt 0:00:00]} 46. Kh2 {[%emt 0:00:15]} 1/2-1/2

[Event "Turkish Cup 2024"]
[Site "Denizli"]
[Date "2024.08.04"]
[Round "8"]
[White "Gungor, Cihan Akif"]
[Black "Kiraz, Yigit"]
[Result "1-0"]
[ECO "B92"]
[WhiteElo "2024"]
[BlackElo "1786"]
[Annotator "RC"]
[PlyCount "101"]
[EventDate "2024.08.01"]
[EventType "swiss"]
[EventCountry "TUR"]
[SourceTitle "playchess.com"]
[Source "ChessBase"]
[SourceQuality "1"]
[TimeControl "5400+30"]

1. e4 {[%emt 0:01:00]} c5 {[%emt 0:03:00]} 2. Nf3 {[%emt 0:00:00]} d6 {[%emt 0:00:30]} 3. d4 {[%emt 0:00:00]} cxd4 {[%emt 0:00:30]} 4. Nxd4 {[%emt 0:00:00]} Nf6 {[%emt 0:00:00]} 5. Nc3 {[%emt 0:00:00]} a6 {[%emt 0:00:00]} 6. Be2 {[%emt 0:00:30]} e5 {[%emt 0:00:30]} 7. Nb3 {[%emt 0:00:00]} Be7 {[%emt 0:00:00]} 8. Be3 {[%emt 0:00:00]} Be6 {[%emt 0:00:00]} 9. Nd5 {[%emt 0:00:00]} Nbd7 {[%emt 0:00:30]} 10. Qd3 {[%emt 0:01:00]} Bxd5 {[%emt 0:00:30]} 11. exd5 {[%emt 0:00:00]} h5 {[%emt 0:00:00]} 12. c4 {[%emt 0:04:00]} a5 {[%emt 0:03:00]} 13. c5 {[%emt 0:07:30]} Nxc5 {[%emt 0:02:30]} 14. Nxc5 {[%emt 0:08:30]} dxc5 {[%emt 0:00:30]} 15. Qb5+ {[%emt 0:00:30]} Qd7 {[%emt 0:01:30]} 16. Bxc5 {[%emt 0:00:30]} Bxc5 {[%emt 0:03:30]} 17. Qxc5 {[%emt 0:00:30]} Rc8 {[%emt 0:02:30]} 18. Qxa5 {[%emt 0:00:30]} Qxd5 {[%emt 0:05:30]} 19. Bb5+ {[%emt 0:00:30]} Kf8 {[%emt 0:00:30]} 20. O-O {[%emt 0:01:30]} g6 {[%emt 0:01:30]} 21. Qb6 {[%emt 0:05:30]} Kg7 {[%emt 0:01:30]} 22. a4 {[%emt 0:00:30]} Rc2 {[%emt 0:09:30]} 23. Rad1 {[%emt 0:14:30]} Qc5 {[%emt 0:01:30]} 24. Qxb7 {[%emt 0:03:30]} e4 {[%emt 0:05:30]} 25. h3 {[%emt 0:04:30]} e3 {[%emt 0:33:30]} 26. fxe3 {[%emt 0:00:30]} Qxe3+ {[%emt 0:01:30]} 27. Kh1 {[%emt 0:01:30]} Ne4 {[%emt 0:06:33]} 28. Qxf7+ {[%emt 0:13:30]} Kh6 {[%emt 0:00:03]} 29. Rf3 {[%emt 0:00:30]} Nf2+ {[%emt 0:04:18]} 30. Kg1 {[%emt 0:00:30]} Nxh3+ {[%emt 0:01:58]} 31. Kh2 {[%emt 0:00:00]} Ng5 {[%emt 0:09:26]} 32. Qxg6+ {[%emt 0:01:00]} Kxg6 {[%emt 0:00:01]} 33. Rd6+ {[%emt 0:03:30]} Qe6 {[%emt 0:00:30]} 34. Rxe6+ {[%emt 0:00:00]} Nxe6 {[%emt 0:00:21]} 35. Bd3+ {[%emt 0:00:00]} Kg5 {[%emt 0:00:34]} 36. Rf5+ {[%emt 0:04:30]} Kg4 {[%emt 0:00:30]} 37. Bxc2 {[%emt 0:00:00]} Rc8 {[%emt 0:01:25]} 38. Rf2 {[%emt 0:00:00]} Nd4 {[%emt 0:00:45]} 39. Bd1+ {[%emt 0:00:00]} Kg5 {[%emt 0:00:30]} 40. Rd2 {[%emt 0:00:00]} Nf5 {[%emt 0:01:46]} 41. Rd5 {[%emt 0:00:30]} h4 {[%emt 0:01:35]} 42. a5 {[%emt 0:00:30]} Kf4 {[%emt 0:00:45]} 43. Bf3 {[%emt 0:01:30]} h3 {[%emt 0:00:16]} 44. a6 {[%emt 0:02:30]} hxg2 {[%emt 0:00:53]} 45. Rxf5+ {[%emt 0:01:30]} Kxf5 {[%emt 0:00:30]} 46. a7 {[%emt 0:00:00]} Ke5 {[%emt 0:00:45]} 47. a8=Q {[%emt 0:00:00]} Rxa8 {[%emt 0:00:36]} 48. Bxa8 {[%emt 0:00:30]} Kd4 {[%emt 0:00:00]} 49. b3 {[%emt 0:00:00]} Kc5 {[%emt 0:00:51]} 50. Kxg2 {[%emt 0:00:00]} Kd4 {[%emt 0:00:38]} 51. Bf3 {[%emt 0:00:00]} 1-0

[Event "Turkish Cup 2024"]
[Site "Denizli"]
[Date "2024.08.04"]
[Round "8"]
[White "Ilgaz, Yusuf Kerem"]
[Black "Binboga, Yaman"]
[Result "1-0"]
[ECO "B29"]
[WhiteElo "2006"]
[BlackElo "1770"]
[Annotator "RC"]
[PlyCount "96"]
[EventDate "2024.08.01"]
[EventType "swiss"]
[EventCountry "TUR"]
[SourceTitle "playchess.com"]
[Source "ChessBase"]
[SourceQuality "1"]
[TimeControl "5400+30"]

1. e4 {[%emt 0:01:00]} c5 {[%emt 0:01:00]} 2. Nf3 {[%emt 0:00:00]} Nf6 {[%emt 0:00:00]} 3. Nc3 {[%emt 0:00:00]} d5 {[%emt 0:00:00]} 4. exd5 {[%emt 0:03:30]} Nxd5 {[%emt 0:00:30]} 5. Bb5+ {[%emt 0:00:30]} Bd7 {[%emt 0:00:30]} 6. Qe2 {[%emt 0:04:30]} Nf6 {[%emt 0:11:30]} 7. d4 {[%emt 0:03:30]} cxd4 {[%emt 0:02:30]} 8. Nxd4 {[%emt 0:00:30]} e6 {[%emt 0:00:30]} 9. Bf4 {[%emt 0:05:30]} Bb4 {[%emt 0:02:30]} 10. O-O {[%emt 0:05:30]} O-O {[%emt 0:01:30]} 11. Bd3 {[%emt 0:02:30]} Nc6 {[%emt 0:02:30]} 12. Nb3 {[%emt 0:08:30]} h6 {[%emt 0:14:30]} 13. Rad1 {[%emt 0:02:30]} Re8 {[%emt 0:10:30]} 14. Ne4 {[%emt 0:04:30]} e5 {[%emt 0:07:30]} 15. Bg3 {[%emt 0:02:30]} Nxe4 {[%emt 0:01:30]} 16. Bxe4 {[%emt 0:00:30]} Qc7 {[%emt 0:02:30]} 17. Kh1 {[%emt 0:05:30]} Be6 {[%emt 0:01:30]} 18. Qh5 {[%emt 0:06:30]} Bc4 {[%emt 0:05:30]} 19. Bd3 {[%emt 0:07:30]} Bxd3 {[%emt 0:00:30]} 20. Rxd3 {[%emt 0:00:30]} Rad8 {[%emt 0:01:30]} 21. Rfd1 {[%emt 0:04:30]} Rxd3 {[%emt 0:00:30]} 22. Rxd3 {[%emt 0:00:00]} Rd8 {[%emt 0:00:30]} 23. Qe2 {[%emt 0:01:00]} Rxd3 {[%emt 0:00:30]} 24. Qxd3 {[%emt 0:00:30]} Qd6 {[%emt 0:00:30]} 25. Qe2 {[%emt 0:01:30]} a5 {[%emt 0:02:30]} 26. c3 {[%emt 0:02:30]} Bc5 {[%emt 0:02:30]} 27. Nxc5 {[%emt 0:01:30]} Qxc5 {[%emt 0:00:00]} 28. f3 {[%emt 0:00:30]} Qd5 {[%emt 0:00:00]} 29. b3 {[%emt 0:00:30]} Qc5 {[%emt 0:01:30]} 30. Qd2 {[%emt 0:01:30]} a4 {[%emt 0:01:30]} 31. Bf2 {[%emt 0:00:30]} Qb5 {[%emt 0:00:30]} 32. Qc2 {[%emt 0:01:30]} axb3 {[%emt 0:00:30]} 33. axb3 {[%emt 0:03:30]} Na5 {[%emt 0:00:30]} 34. b4 {[%emt 0:01:30]} Qf1+ {[%emt 0:04:30]} 35. Bg1 {[%emt 0:00:00]} Nc4 {[%emt 0:00:30]} 36. Qe4 {[%emt 0:02:00]} b5 {[%emt 0:01:30]} 37. Qd5 {[%emt 0:00:56]} Nb2 {[%emt 0:01:30]} 38. Qxe5 {[%emt 0:02:35]} Nd3 {[%emt 0:01:44]} 39. Qe3 {[%emt 0:02:25]} Ne1 {[%emt 0:00:20]} 40. Qd2 {[%emt 0:03:01]} g6 {[%emt 0:03:30]} 41. h3 {[%emt 0:00:43]} Kh7 {[%emt 0:00:57]} 42. Qa2 {[%emt 0:01:07]} Kg8 {[%emt 0:02:20]} 43. Kh2 {[%emt 0:00:58]} Nxf3+ {[%emt 0:06:36]} 44. gxf3 {[%emt 0:00:30]} Qxf3 {[%emt 0:00:00]} 45. Qd2 {[%emt 0:00:14]} Kh7 {[%emt 0:00:08]} 46. Bd4 {[%emt 0:01:00]} h5 {[%emt 0:00:10]} 47. Qf2 {[%emt 0:00:00]} Qd5 {[%emt 0:00:37]} 48. Qf6 {[%emt 0:00:24]} Qc5 {[%emt 0:00:40]} 1-0

[Event "Turkish Cup 2024"]
[Site "Denizli"]
[Date "2024.08.04"]
[Round "8"]
[White "Akbas, Kaan"]
[Black "Selvi, Kaan"]
[Result "1/2-1/2"]
[ECO "A08"]
[WhiteElo "1990"]
[BlackElo "1863"]
[Annotator "RC"]
[PlyCount "120"]
[EventDate "2024.08.01"]
[EventType "swiss"]
[EventCountry "TUR"]
[SourceTitle "playchess.com"]
[Source "ChessBase"]
[SourceQuality "1"]
[TimeControl "5400+30"]

1. Nf3 {[%emt 0:01:00]} Nf6 {[%emt 0:07:00]} 2. g3 {[%emt 0:00:00]} c5 {[%emt 0:00:30]} 3. Bg2 {[%emt 0:00:00]} g6 {[%emt 0:00:00]} 4. O-O {[%emt 0:00:30]} Bg7 {[%emt 0:01:00]} 5. d3 {[%emt 0:02:30]} d5 {[%emt 0:03:30]} 6. Nbd2 {[%emt 0:00:30]} Nc6 {[%emt 0:00:30]} 7. e4 {[%emt 0:00:30]} dxe4 {[%emt 0:00:30]} 8. dxe4 {[%emt 0:00:00]} O-O {[%emt 0:03:30]} 9. c3 {[%emt 0:03:00]} Qc7 {[%emt 0:09:30]} 10. Qc2 {[%emt 0:08:30]} b6 {[%emt 0:04:30]} 11. Rd1 {[%emt 0:01:30]} Rd8 {[%emt 0:00:30]} 12. Nc4 {[%emt 0:06:30]} Rxd1+ {[%emt 0:08:30]} 13. Qxd1 {[%emt 0:00:00]} Nxe4 {[%emt 0:06:30]} 14. Bf4 {[%emt 0:03:00]} Qb7 {[%emt 0:15:30]} 15. Qe2 {[%emt 0:13:30]} b5 {[%emt 0:11:30]} 16. Nfe5 {[%emt 0:08:30]} f5 {[%emt 0:05:30]} 17. Nxc6 {[%emt 0:08:30]} Qxc6 {[%emt 0:00:30]} 18. Na5 {[%emt 0:00:30]} Qe6 {[%emt 0:01:24]} 19. Qxb5 {[%emt 0:01:30]} Ba6 {[%emt 0:00:26]} 20. Qa4 {[%emt 0:04:30]} Bd3 {[%emt 0:01:40]} 21. Rd1 {[%emt 0:07:30]} c4 {[%emt 0:00:12]} 22. Qc6 {[%emt 0:01:30]} Qxc6 {[%emt 0:01:52]} 23. Nxc6 {[%emt 0:00:30]} Kf7 {[%emt 0:00:29]} 24. f3 {[%emt 0:03:30]} Nc5 {[%emt 0:01:39]} 25. Be3 {[%emt 0:04:30]} Na4 {[%emt 0:00:36]} 26. Rd2 {[%emt 0:00:30]} e5 {[%emt 0:01:59]} 27. b3 {[%emt 0:01:52]} Nxc3 {[%emt 0:01:45]} 28. bxc4 {[%emt 0:00:08]} Bxc4 {[%emt 0:01:22]} 29. Rd7+ {[%emt 0:01:14]} Kg8 {[%emt 0:00:08]} 30. Rc7 {[%emt 0:01:48]} Nd5 {[%emt 0:01:10]} 31. Ne7+ {[%emt 0:01:08]} Kh8 {[%emt 0:02:11]} 32. Nxd5 {[%emt 0:02:37]} Bxd5 {[%emt 0:00:05]} 33. a4 {[%emt 0:00:47]} a5 {[%emt 0:00:18]} 34. f4 {[%emt 0:06:18]} Bxg2 {[%emt 0:04:10]} 35. Kxg2 {[%emt 0:00:01]} e4 {[%emt 0:01:08]} 36. Bb6 {[%emt 0:00:56]} Bf8 {[%emt 0:00:21]} 37. h4 {[%emt 0:01:18]} Kg8 {[%emt 0:01:16]} 38. Kh3 {[%emt 0:00:53]} Ra6 {[%emt 0:00:46]} 39. Rb7 {[%emt 0:00:22]} Ra8 {[%emt 0:01:22]} 40. h5 {[%emt 0:00:09]} Bg7 {[%emt 0:01:32]} 41. hxg6 {[%emt 0:01:50]} hxg6 {[%emt 0:00:02]} 42. g4 {[%emt 0:00:00]} Rc8 {[%emt 0:00:38]} 43. gxf5 {[%emt 0:01:23]} gxf5 {[%emt 0:00:30]} 44. Kh4 {[%emt 0:00:30]} Bh6 {[%emt 0:00:30]} 45. Kh5 {[%emt 0:00:17]} Bxf4 {[%emt 0:02:30]} 46. Kg6 {[%emt 0:00:10]} Rc6+ {[%emt 0:00:58]} 47. Kxf5 {[%emt 0:00:05]} Bd2 {[%emt 0:00:47]} 48. Kxe4 {[%emt 0:00:02]} Bb4 {[%emt 0:00:19]} 49. Bd4 {[%emt 0:07:43]} Rc2 {[%emt 0:00:59]} 50. Rg7+ {[%emt 0:00:59]} Kf8 {[%emt 0:00:05]} 51. Rg1 {[%emt 0:00:25]} Ra2 {[%emt 0:00:21]} 52. Kd5 {[%emt 0:00:29]} Rxa4 {[%emt 0:00:53]} 53. Ke6 {[%emt 0:00:46]} Be7 {[%emt 0:00:11]} 54. Bg7+ {[%emt 0:00:11]} Ke8 {[%emt 0:00:08]} 55. Rh1 {[%emt 0:00:00]} Re4+ {[%emt 0:01:01]} 56. Be5 {[%emt 0:00:06]} a4 {[%emt 0:00:21]} 57. Rh8+ {[%emt 0:00:38]} Bf8 {[%emt 0:00:06]} 58. Kd5 {[%emt 0:00:53]} Re1 {[%emt 0:00:30]} 59. Bc3 {[%emt 0:00:06]} Rb1 {[%emt 0:00:17]} 60. Bg7 {[%emt 0:00:19]} Rf1 {[%emt 0:00:10]} 1/2-1/2

[Event "Turkish Cup 2024"]
[Site "Denizli"]
[Date "2024.08.04"]
[Round "8"]
[White "Cakir, Mert"]
[Black "Cevizci, Yusuf Baran"]
[Result "1/2-1/2"]
[ECO "C03"]
[WhiteElo "1990"]
[BlackElo "2102"]
[Annotator "RC"]
[PlyCount "87"]
[EventDate "2024.08.01"]
[EventType "swiss"]
[EventCountry "TUR"]
[SourceTitle "playchess.com"]
[Source "ChessBase"]
[SourceQuality "1"]
[TimeControl "5400+30"]

1. e4 {[%emt 0:01:00]} e6 {[%emt 0:05:00]} 2. d4 {[%emt 0:00:30]} d5 {[%emt 0:00:30]} 3. Nd2 {[%emt 0:00:00]} Be7 {[%emt 0:00:30]} 4. Bd3 {[%emt 0:00:00]} c5 {[%emt 0:00:30]} 5. dxc5 {[%emt 0:00:00]} Nf6 {[%emt 0:03:30]} 6. Qe2 {[%emt 0:00:00]} a5 {[%emt 0:00:00]} 7. Ngf3 {[%emt 0:02:30]} O-O {[%emt 0:01:00]} 8. O-O {[%emt 0:02:30]} Na6 {[%emt 0:00:30]} 9. e5 {[%emt 0:00:00]} Nd7 {[%emt 0:00:30]} 10. c3 {[%emt 0:00:00]} Naxc5 {[%emt 0:00:00]} 11. Bc2 {[%emt 0:00:00]} b6 {[%emt 0:00:00]} 12. Re1 {[%emt 0:00:00]} Ba6 {[%emt 0:00:30]} 13. Qe3 {[%emt 0:00:30]} Rc8 {[%emt 0:00:30]} 14. Nd4 {[%emt 0:07:30]} Re8 {[%emt 0:09:30]} 15. b4 {[%emt 0:18:30]} axb4 {[%emt 0:01:30]} 16. cxb4 {[%emt 0:00:30]} Nb7 {[%emt 0:00:00]} 17. b5 {[%emt 0:01:30]} Bxb5 {[%emt 0:00:00]} 18. Bxh7+ {[%emt 0:00:30]} Kxh7 {[%emt 0:00:00]} 19. Nxb5 {[%emt 0:00:30]} Kg8 {[%emt 0:00:00]} 20. Bb2 {[%emt 0:05:30]} Na5 {[%emt 0:02:30]} 21. Rac1 {[%emt 0:04:30]} Nc5 {[%emt 0:04:30]} 22. Rb1 {[%emt 0:33:30]} Nc6 {[%emt 0:08:30]} 23. Red1 {[%emt 0:03:57]} Ra8 {[%emt 0:00:30]} 24. a3 {[%emt 0:02:40]} Ra4 {[%emt 0:01:30]} 25. Qg3 {[%emt 0:05:14]} Qd7 {[%emt 0:04:30]} 26. Nc3 {[%emt 0:02:49]} Raa8 {[%emt 0:02:30]} 27. Nde4 {[%emt 0:02:04]} Qd8 {[%emt 0:01:30]} 28. Nf6+ {[%emt 0:02:50]} Bxf6 {[%emt 0:00:30]} 29. exf6 {[%emt 0:00:00]} g6 {[%emt 0:00:30]} 30. Qf4 {[%emt 0:03:45]} d4 {[%emt 0:19:30]} 31. Ne4 {[%emt 0:00:15]} Nxe4 {[%emt 0:03:30]} 32. Qxe4 {[%emt 0:00:05]} Qd5 {[%emt 0:00:00]} 33. Qh4 {[%emt 0:01:45]} Qf5 {[%emt 0:03:00]} 34. g4 {[%emt 0:00:49]} Qf4 {[%emt 0:00:30]} 35. Rd3 {[%emt 0:00:44]} Ne5 {[%emt 0:02:30]} 36. Rh3 {[%emt 0:01:02]} Nf3+ {[%emt 0:03:30]} 37. Rxf3 {[%emt 0:00:03]} Qxf3 {[%emt 0:00:00]} 38. Bxd4 {[%emt 0:00:07]} e5 {[%emt 0:00:00]} 39. Rb3 {[%emt 0:00:16]} Qxb3 {[%emt 0:13:34]} 40. Qh6 {[%emt 0:00:35]} Qd1+ {[%emt 0:00:30]} 41. Kg2 {[%emt 0:00:30]} Qxg4+ {[%emt 0:00:30]} 42. Kf1 {[%emt 0:00:00]} Qd1+ {[%emt 0:00:00]} 43. Kg2 {[%emt 0:00:00]} Qg4+ {[%emt 0:00:00]} 44. Kf1 {[%emt 0:00:00]} 1/2-1/2

[Event "Turkish Cup 2024"]
[Site "Denizli"]
[Date "2024.08.04"]
[Round "8"]
[White "Dargali, Hakan"]
[Black "Bozdag, Armagan Emre"]
[Result "1-0"]
[ECO "E33"]
[WhiteElo "1973"]
[BlackElo "1794"]
[Annotator "RC"]
[PlyCount "69"]
[EventDate "2024.08.01"]
[EventType "swiss"]
[EventCountry "TUR"]
[SourceTitle "playchess.com"]
[Source "ChessBase"]
[SourceQuality "1"]
[TimeControl "5400+30"]

1. d4 {[%emt 0:06:00]} Nf6 {[%emt 0:04:00]} 2. c4 {[%emt 0:00:30]} e6 {[%emt 0:00:00]} 3. Nc3 {[%emt 0:00:30]} Bb4 {[%emt 0:00:00]} 4. Nf3 {[%emt 0:00:00]} Nc6 {[%emt 0:00:00]} 5. Qc2 {[%emt 0:01:00]} d6 {[%emt 0:00:00]} 6. Bg5 {[%emt 0:01:30]} h6 {[%emt 0:00:30]} 7. Bxf6 {[%emt 0:00:30]} Qxf6 {[%emt 0:00:00]} 8. a3 {[%emt 0:02:30]} Bxc3+ {[%emt 0:00:00]} 9. Qxc3 {[%emt 0:00:00]} O-O {[%emt 0:06:30]} 10. e3 {[%emt 0:01:00]} e5 {[%emt 0:01:30]} 11. d5 {[%emt 0:00:30]} Ne7 {[%emt 0:00:30]} 12. Bd3 {[%emt 0:06:30]} c6 {[%emt 0:06:30]} 13. dxc6 {[%emt 0:06:30]} bxc6 {[%emt 0:00:30]} 14. c5 {[%emt 0:02:30]} Nd5 {[%emt 0:01:30]} 15. Qc2 {[%emt 0:08:30]} Re8 {[%emt 0:14:30]} 16. cxd6 {[%emt 0:00:30]} Qxd6 {[%emt 0:00:30]} 17. Nd2 {[%emt 0:00:30]} Nf6 {[%emt 0:05:30]} 18. Ne4 {[%emt 0:01:30]} Qe6 {[%emt 0:08:30]} 19. O-O {[%emt 0:01:30]} Nd5 {[%emt 0:10:30]} 20. Rac1 {[%emt 0:00:30]} f5 {[%emt 0:00:30]} 21. Ng3 {[%emt 0:00:30]} f4 {[%emt 0:03:30]} 22. Ne4 {[%emt 0:11:30]} Kh8 {[%emt 0:09:30]} 23. Qxc6 {[%emt 0:03:30]} Qxc6 {[%emt 0:00:30]} 24. Rxc6 {[%emt 0:00:30]} fxe3 {[%emt 0:01:30]} 25. Nd6 {[%emt 0:01:30]} Rf8 {[%emt 0:09:57]} 26. fxe3 {[%emt 0:00:30]} Bd7 {[%emt 0:01:59]} 27. Rxf8+ {[%emt 0:01:30]} Rxf8 {[%emt 0:00:04]} 28. Rc5 {[%emt 0:00:00]} Nxe3 {[%emt 0:03:49]} 29. Rxe5 {[%emt 0:00:00]} Ng4 {[%emt 0:02:27]} 30. Re7 {[%emt 0:00:30]} Bc6 {[%emt 0:01:05]} 31. h3 {[%emt 0:00:30]} Nf6 {[%emt 0:00:55]} 32. Rxa7 {[%emt 0:01:30]} h5 {[%emt 0:02:24]} 33. b4 {[%emt 0:00:30]} Bd5 {[%emt 0:01:35]} 34. Bg6 {[%emt 0:07:30]} Kg8 {[%emt 0:01:36]} 35. Nf5 {[%emt 0:01:30]} 1-0